[Event "*** Titled Tuesday 3|2 Blitz"]
[Site "Chess.com"]
[Date "2015.09.01"]
[Round "6"]
[White "Bab3s"]
[Black "HZMC92"]
[Result "0-1"]
[WhiteElo "2131"]
[BlackElo "2262"]
[TimeControl "180+2"]
[EndTime "12:14:37 PDT"]
[Termination "HZMC92 won by resignation"]

1. e4 {[%clk 0:03:01.9]} 1... c5 {[%clk 0:03:01.1]} 2. c3 {[%clk 0:03:01.4]}
2... d5 {[%clk 0:03:02]} 3. exd5 {[%clk 0:03:01.2]} 3... Qxd5 {[%clk 0:03:03.9]}
4. d4 {[%clk 0:03:01.3]} 4... Nf6 {[%clk 0:03:05.2]} 5. Nf3 {[%clk 0:03:02.3]}
5... Bg4 {[%clk 0:03:06.4]} 6. Nbd2 {[%clk 0:03:03.1]} 6... cxd4 {[%clk
0:03:06.5]} 7. Bc4 {[%clk 0:02:55.7]} 7... Qd6 {[%clk 0:03:02.9]} 8. Qb3 {[%clk
0:02:51.8]} 8... Nbd7 {[%clk 0:02:36.2]} 9. Bxf7+ {[%clk 0:02:38.2]} 9... Kd8
{[%clk 0:02:37]} 10. O-O {[%clk 0:02:21.9]} 10... Nc5 {[%clk 0:02:36.7]} 11. Qc4
{[%clk 0:02:16]} 11... d3 {[%clk 0:02:33.9]} 12. b4 {[%clk 0:01:58.5]} 12...
Ncd7 {[%clk 0:02:33.8]} 13. Qd4 {[%clk 0:01:30.5]} 13... Qxd4 {[%clk 0:02:29.1]}
14. Nxd4 {[%clk 0:01:23.3]} 14... e5 {[%clk 0:02:29]} 15. Ne6+ {[%clk
0:01:05.1]} 15... Ke7 {[%clk 0:02:30]} 16. Nxf8 {[%clk 0:01:05.7]} 16... Kxf7
{[%clk 0:02:22.9]} 17. Nxd7 {[%clk 0:01:02.7]} 17... Bxd7 {[%clk 0:02:20.7]} 18.
Re1 {[%clk 0:01:01.3]} 18... Rhe8 {[%clk 0:02:20.7]} 19. Nc4 {[%clk 0:00:59.5]}
19... e4 {[%clk 0:01:50.9]} 20. Nd6+ {[%clk 0:00:58.2]} 20... Kg6 {[%clk
0:01:52.4]} 21. Nxe8 {[%clk 0:01:00.1]} 21... Rxe8 {[%clk 0:01:54.1]} 22. f3
{[%clk 0:00:53.4]} 22... Bc6 {[%clk 0:01:48]} 23. Kf2 {[%clk 0:00:45]} 23... Rd8
{[%clk 0:01:48.8]} 24. Bd2 {[%clk 0:00:42]} 24... a6 {[%clk 0:01:43]} 25. Rad1
{[%clk 0:00:28.2]} 25... h5 {[%clk 0:01:43.6]} 26. Be3 {[%clk 0:00:24.2]} 26...
h4 {[%clk 0:01:41.5]} 27. Bd4 {[%clk 0:00:24.3]} 27... exf3 {[%clk 0:01:42.1]}
28. gxf3 {[%clk 0:00:24.1]} 28... Nh5 {[%clk 0:01:40.1]} 29. Rxd3 {[%clk
0:00:20.1]} 29... Nf4 {[%clk 0:01:41.1]} 30. Rg1+ {[%clk 0:00:16.4]} 30... Kh5
{[%clk 0:01:30.6]} 31. Re3 {[%clk 0:00:12.6]} 31... Nh3+ {[%clk 0:01:31.6]} 32.
Kf1 {[%clk 0:00:13.6]} 32... Nxg1 {[%clk 0:01:29.8]} 33. Kxg1 {[%clk 0:00:15.5]}
33... g5 {[%clk 0:01:24.1]} 34. Kf2 {[%clk 0:00:09.3]} 34... Rf8 {[%clk
0:01:24.9]} 35. Ke2 {[%clk 0:00:09.8]} 35... g4 {[%clk 0:01:21.5]} 36. fxg4+
{[%clk 0:00:09.5]} 36... Kxg4 {[%clk 0:01:23.4]} 37. Bc5 {[%clk 0:00:07.7]}
37... Bb5+ {[%clk 0:01:22.5]} 38. Kd2 {[%clk 0:00:06.9]} 38... Rf2+ {[%clk
0:01:21.5]} 39. Ke1 {[%clk 0:00:08]} 39... Rxh2 {[%clk 0:01:21.6]} 40. c4 {[%clk
0:00:08]} 40... Bc6 {[%clk 0:01:17.3]} 41. a3 {[%clk 0:00:05.4]} 41... h3 {[%clk
0:01:16.9]} 42. Bd6 {[%clk 0:00:04.7]} 42... Ra2 {[%clk 0:01:15.1]} 43. Rg3+
{[%clk 0:00:04.1]} 43... Kh4 {[%clk 0:01:14.5]} 44. Rg8 {[%clk 0:00:04.4]} 44...
Bf3 {[%clk 0:01:06.7]} 45. Be7+ {[%clk 0:00:04.2]} 45... Kh5 {[%clk 0:01:06.5]}
46. Rh8+ {[%clk 0:00:05.3]} 46... Kg4 {[%clk 0:01:07.3]} 47. Rg8+ {[%clk
0:00:06.3]} 47... Kf4 {[%clk 0:01:07.8]} 48. Bd6+ {[%clk 0:00:07]} 48... Ke3
{[%clk 0:01:08.1]} 49. Bc5+ {[%clk 0:00:06.5]} 49... Kd3 {[%clk 0:01:07.9]} 50.
Rg3 {[%clk 0:00:05.3]} 50... h2 {[%clk 0:01:00.8]} 51. Rxf3+ {[%clk 0:00:05.6]}
51... Kxc4 {[%clk 0:01:02.2]} 52. Rh3 {[%clk 0:00:06.1]} 52... Ra1+ {[%clk
0:01:00.7]} 53. Kd2 {[%clk 0:00:07]} 53... h1=Q {[%clk 0:01:02.6]} 54. Rxh1
{[%clk 0:00:05.4]} 54... Rxh1 {[%clk 0:01:04.5]} 55. Kc2 {[%clk 0:00:06.7]}
55... Rh2+ {[%clk 0:01:04.3]} 56. Kb1 {[%clk 0:00:07.4]} 56... Kb3 {[%clk
0:01:05.4]} 57. b5 {[%clk 0:00:07.7]} 57... Rh1+ {[%clk 0:01:05.7]} 0-1

[Event "*** Titled Tuesday 3|2 Blitz"]
[Site "Chess.com"]
[Date "2015.09.01"]
[Round "6"]
[White "wonderfultime"]
[Black "facu57"]
[Result "0-1"]
[WhiteElo "2631"]
[BlackElo "2480"]
[TimeControl "180+2"]
[EndTime "12:14:38 PDT"]
[Termination "facu57 won by resignation"]

1. d4 {[%clk 0:03:01.9]} 1... Nf6 {[%clk 0:02:58.6]} 2. c4 {[%clk 0:03:03]} 2...
e6 {[%clk 0:02:59.4]} 3. Nf3 {[%clk 0:03:03.9]} 3... Bb4+ {[%clk 0:02:59.6]} 4.
Nbd2 {[%clk 0:03:05.2]} 4... O-O {[%clk 0:02:50.9]} 5. a3 {[%clk 0:03:03.2]}
5... Be7 {[%clk 0:02:52.4]} 6. e3 {[%clk 0:03:01]} 6... d5 {[%clk 0:02:52]} 7.
Be2 {[%clk 0:02:46.9]} 7... b6 {[%clk 0:02:48.7]} 8. O-O {[%clk 0:02:48]} 8...
Bb7 {[%clk 0:02:48.7]} 9. Qc2 {[%clk 0:02:48.2]} 9... Nbd7 {[%clk 0:02:45.7]}
10. b4 {[%clk 0:02:36.3]} 10... c5 {[%clk 0:02:46]} 11. bxc5 {[%clk 0:02:32.9]}
11... bxc5 {[%clk 0:02:46.5]} 12. Bb2 {[%clk 0:02:34.5]} 12... Rc8 {[%clk
0:02:43.4]} 13. Rac1 {[%clk 0:02:31.4]} 13... Qa5 {[%clk 0:02:37.3]} 14. Bc3
{[%clk 0:02:07]} 14... Qc7 {[%clk 0:02:26.3]} 15. Qb2 {[%clk 0:02:08.2]} 15...
Ba8 {[%clk 0:02:19.6]} 16. Qa1 {[%clk 0:02:07.7]} 16... Rfe8 {[%clk 0:02:12.1]}
17. Rfd1 {[%clk 0:02:06.5]} 17... cxd4 {[%clk 0:02:01.4]} 18. Bxd4 {[%clk
0:02:06.5]} 18... Qa5 {[%clk 0:01:58.8]} 19. cxd5 {[%clk 0:02:06.4]} 19... Bxd5
{[%clk 0:01:57.5]} 20. a4 {[%clk 0:02:03.3]} 20... Nc5 {[%clk 0:01:55.1]} 21.
Bb5 {[%clk 0:01:56.8]} 21... Red8 {[%clk 0:01:53.1]} 22. Ne5 {[%clk 0:01:26.3]}
22... Nfe4 {[%clk 0:01:34.2]} 23. Nec4 {[%clk 0:00:58.9]} 23... Qc7 {[%clk
0:01:07.6]} 24. Nxe4 {[%clk 0:00:59.1]} 24... Bxe4 {[%clk 0:01:01.8]} 25. Nd2
{[%clk 0:00:55.9]} 25... Qb7 {[%clk 0:00:57.9]} 26. f3 {[%clk 0:00:34.2]} 26...
Bg6 {[%clk 0:00:58.9]} 27. Bxg7 {[%clk 0:00:12.7]} 27... a6 {[%clk 0:00:55.9]}
28. Bh6 {[%clk 0:00:11.1]} 28... f6 {[%clk 0:00:46.5]} 29. Bc4 {[%clk
0:00:09.7]} 29... Bf7 {[%clk 0:00:44.5]} 30. Nf1 {[%clk 0:00:09.2]} 30... Rxd1
{[%clk 0:00:39.7]} 31. Rxd1 {[%clk 0:00:11.1]} 31... Qc6 {[%clk 0:00:37.6]} 32.
a5 {[%clk 0:00:08.4]} 32... Rb8 {[%clk 0:00:33.9]} 33. Ng3 {[%clk 0:00:07.4]}
33... Nb3 {[%clk 0:00:32.6]} 34. Bxb3 {[%clk 0:00:08.2]} 34... Rxb3 {[%clk
0:00:34.5]} 35. Qd4 {[%clk 0:00:07.9]} 35... Bg6 {[%clk 0:00:32.2]} 36. Ne4
{[%clk 0:00:03.7]} 36... Bxe4 {[%clk 0:00:26.9]} 37. fxe4 {[%clk 0:00:05.6]}
37... Kf7 {[%clk 0:00:23.3]} 38. e5 {[%clk 0:00:04.4]} 38... f5 {[%clk
0:00:20.9]} 39. Qf4 {[%clk 0:00:05.5]} 39... Kg6 {[%clk 0:00:15.1]} 40. h4
{[%clk 0:00:03.4]} 40... Rb4 {[%clk 0:00:16.3]} 41. Qf3 {[%clk 0:00:03.5]} 41...
Qxf3 {[%clk 0:00:15.5]} 42. gxf3 {[%clk 0:00:05.4]} 42... Kxh6 {[%clk
0:00:17.2]} 43. Rd7 {[%clk 0:00:07.3]} 43... Bc5 {[%clk 0:00:18]} 44. Kf2 {[%clk
0:00:08.3]} 44... f4 {[%clk 0:00:18.7]} 45. Ke2 {[%clk 0:00:08.7]} 45... Bxe3
{[%clk 0:00:19.9]} 46. Rd6 {[%clk 0:00:09.3]} 46... Rb2+ {[%clk 0:00:17.7]} 47.
Ke1 {[%clk 0:00:10.5]} 47... Kh5 {[%clk 0:00:18.6]} 48. Rxe6 {[%clk 0:00:10.7]}
48... Kxh4 {[%clk 0:00:19.6]} 49. Rb6 {[%clk 0:00:12.1]} 49... Bxb6 {[%clk
0:00:17.9]} 0-1

[Event "*** Titled Tuesday 3|2 Blitz"]
[Site "Chess.com"]
[Date "2015.09.01"]
[Round "6"]
[White "Haridaskesavan"]
[Black "enen0315"]
[Result "0-1"]
[WhiteElo "2004"]
[BlackElo "1952"]
[TimeControl "180+2"]
[EndTime "12:15:03 PDT"]
[Termination "enen0315 won by resignation"]

1. e4 {[%clk 0:03:01.9]} 1... c5 {[%clk 0:03:00]} 2. c3 {[%clk 0:03:02.2]} 2...
d5 {[%clk 0:03:00.2]} 3. exd5 {[%clk 0:03:02.6]} 3... Qxd5 {[%clk 0:03:01.5]} 4.
d4 {[%clk 0:03:03.5]} 4... Nc6 {[%clk 0:03:02]} 5. Nf3 {[%clk 0:03:04.2]} 5...
e6 {[%clk 0:02:57.9]} 6. Be2 {[%clk 0:03:04.4]} 6... Nf6 {[%clk 0:02:58.1]} 7.
O-O {[%clk 0:03:04.9]} 7... Be7 {[%clk 0:02:59]} 8. Be3 {[%clk 0:03:03.6]} 8...
cxd4 {[%clk 0:02:59.3]} 9. cxd4 {[%clk 0:03:04.4]} 9... O-O {[%clk 0:03:00.8]}
10. Nc3 {[%clk 0:03:05.2]} 10... Qd8 {[%clk 0:03:02]} 11. Ne5 {[%clk 0:03:01.9]}
11... Nb4 {[%clk 0:02:56.5]} 12. Qb3 {[%clk 0:02:57]} 12... Nbd5 {[%clk
0:02:54.6]} 13. Bf3 {[%clk 0:02:54.1]} 13... Rb8 {[%clk 0:02:40.2]} 14. Bg5
{[%clk 0:02:43.5]} 14... h6 {[%clk 0:02:21.4]} 15. Bh4 {[%clk 0:02:44]} 15...
Bd7 {[%clk 0:02:09.5]} 16. Bg3 {[%clk 0:02:42.3]} 16... Rc8 {[%clk 0:01:49.1]}
17. Qxb7 {[%clk 0:01:56.1]} 17... Nxc3 {[%clk 0:01:24.9]} 18. bxc3 {[%clk
0:01:53.9]} 18... Rxc3 {[%clk 0:01:24.3]} 19. Qxa7 {[%clk 0:01:47.4]} 19... Ra3
{[%clk 0:01:09.3]} 20. Qb7 {[%clk 0:01:45.1]} 20... Bc8 {[%clk 0:00:55.8]} 21.
Qb2 {[%clk 0:01:35.2]} 21... Bd7 {[%clk 0:00:34]} 22. Rfd1 {[%clk 0:01:19.6]}
22... Ra5 {[%clk 0:00:31.8]} 23. Nxd7 {[%clk 0:01:13.2]} 23... Qxd7 {[%clk
0:00:31.6]} 24. Qd2 {[%clk 0:00:49.6]} 24... Ra4 {[%clk 0:00:21.1]} 25. Rac1
{[%clk 0:00:43.7]} 25... Nd5 {[%clk 0:00:21.1]} 26. h4 {[%clk 0:00:27.3]} 26...
Rfa8 {[%clk 0:00:21.6]} 27. Rc2 {[%clk 0:00:15.5]} 27... Bf6 {[%clk 0:00:22.4]}
28. Be5 {[%clk 0:00:13.1]} 28... Bxh4 {[%clk 0:00:21.6]} 29. g3 {[%clk
0:00:12.6]} 29... Bg5 {[%clk 0:00:22.5]} 30. Qe2 {[%clk 0:00:12.1]} 30... Qa7
{[%clk 0:00:21.6]} 31. Qe4 {[%clk 0:00:08.3]} 31... Rxa2 {[%clk 0:00:19.5]} 32.
Rxa2 {[%clk 0:00:08.5]} 32... Qxa2 {[%clk 0:00:20.5]} 33. Be2 {[%clk 0:00:09.4]}
33... Qa4 {[%clk 0:00:19.9]} 34. Bd3 {[%clk 0:00:09.9]} 34... g6 {[%clk
0:00:19.6]} 35. Qg4 {[%clk 0:00:10]} 35... Rd8 {[%clk 0:00:17.8]} 36. f4 {[%clk
0:00:10.9]} 36... Bf6 {[%clk 0:00:17.8]} 37. Bxf6 {[%clk 0:00:11.1]} 37... Nxf6
{[%clk 0:00:18.4]} 38. Qe2 {[%clk 0:00:12.2]} 38... Qxd4+ {[%clk 0:00:19.7]} 39.
Kg2 {[%clk 0:00:12.7]} 39... Qb6 {[%clk 0:00:19.9]} 40. Rf1 {[%clk 0:00:11]}
40... Kg7 {[%clk 0:00:21.3]} 41. g4 {[%clk 0:00:10.9]} 41... Qc6+ {[%clk
0:00:21.8]} 42. Kg3 {[%clk 0:00:10.1]} 42... Rd4 {[%clk 0:00:22.5]} 43. Rf3
{[%clk 0:00:10.4]} 43... Qd6 {[%clk 0:00:23.2]} 44. Qe3 {[%clk 0:00:10.2]} 44...
g5 {[%clk 0:00:22.7]} 45. Kg2 {[%clk 0:00:07]} 45... gxf4 {[%clk 0:00:23.2]} 46.
Qe2 {[%clk 0:00:06.5]} 46... Nxg4 {[%clk 0:00:23.6]} 47. Rh3 {[%clk 0:00:04.9]}
47... Ne3+ {[%clk 0:00:23.9]} 48. Kf3 {[%clk 0:00:05]} 48... Rxd3 {[%clk
0:00:25.1]} 0-1

[Event "*** Titled Tuesday 3|2 Blitz"]
[Site "Chess.com"]
[Date "2015.09.01"]
[Round "6"]
[White "MFBerna"]
[Black "Keaton87"]
[Result "0-1"]
[WhiteElo "2136"]
[BlackElo "2410"]
[TimeControl "180+2"]
[EndTime "12:15:13 PDT"]
[Termination "Keaton87 won by resignation"]

1. e4 {[%clk 0:03:01.9]} 1... c5 {[%clk 0:03:00.3]} 2. Nf3 {[%clk 0:03:02.3]}
2... d6 {[%clk 0:03:00.1]} 3. d4 {[%clk 0:03:03.2]} 3... Nf6 {[%clk 0:03:01]} 4.
Nc3 {[%clk 0:03:03.3]} 4... cxd4 {[%clk 0:03:02.2]} 5. Nxd4 {[%clk 0:03:03.9]}
5... g6 {[%clk 0:03:03.5]} 6. Be2 {[%clk 0:03:04]} 6... Bg7 {[%clk 0:03:04.5]}
7. O-O {[%clk 0:03:05.3]} 7... Nc6 {[%clk 0:03:05.6]} 8. Be3 {[%clk 0:03:05.7]}
8... O-O {[%clk 0:03:05.9]} 9. Nb3 {[%clk 0:03:03.8]} 9... Be6 {[%clk
0:03:06.3]} 10. f4 {[%clk 0:03:04.8]} 10... Rc8 {[%clk 0:03:07.4]} 11. Kh1
{[%clk 0:02:54.4]} 11... Na5 {[%clk 0:03:08.1]} 12. Qd2 {[%clk 0:02:51.3]} 12...
Bc4 {[%clk 0:03:08.4]} 13. Bd3 {[%clk 0:02:51.5]} 13... a6 {[%clk 0:02:57.2]}
14. Rad1 {[%clk 0:02:49.7]} 14... Bxd3 {[%clk 0:02:50.3]} 15. Qxd3 {[%clk
0:02:51.6]} 15... Nc4 {[%clk 0:02:50.5]} 16. Bc1 {[%clk 0:02:52.1]} 16... b5
{[%clk 0:02:48.6]} 17. a3 {[%clk 0:02:47.8]} 17... Qc7 {[%clk 0:02:39.8]} 18.
Ne2 {[%clk 0:02:32.8]} 18... Rfd8 {[%clk 0:02:30.7]} 19. c3 {[%clk 0:02:32.1]}
19... d5 {[%clk 0:02:29]} 20. e5 {[%clk 0:02:31.4]} 20... Ne4 {[%clk 0:02:30.1]}
21. Ng3 {[%clk 0:02:27.2]} 21... Nxg3+ {[%clk 0:02:14]} 22. Qxg3 {[%clk
0:02:29.1]} 22... e6 {[%clk 0:02:11]} 23. Nd4 {[%clk 0:02:25]} 23... Na5 {[%clk
0:02:02.5]} 24. Nf3 {[%clk 0:02:17.8]} 24... Qc4 {[%clk 0:02:01.4]} 25. Qh4
{[%clk 0:01:57.9]} 25... Nb3 {[%clk 0:01:59.5]} 26. Be3 {[%clk 0:01:48.9]} 26...
a5 {[%clk 0:01:44.9]} 27. Ng5 {[%clk 0:01:19.2]} 27... h6 {[%clk 0:01:44.6]} 28.
Nf3 {[%clk 0:01:13.7]} 28... Qe4 {[%clk 0:01:39.3]} 29. Rfe1 {[%clk 0:01:05.6]}
29... Qc4 {[%clk 0:01:23.6]} 30. Qf2 {[%clk 0:00:46.7]} 30... b4 {[%clk
0:01:22.5]} 31. axb4 {[%clk 0:00:42.4]} 31... axb4 {[%clk 0:01:23.3]} 32. cxb4
{[%clk 0:00:43.2]} 32... Qxb4 {[%clk 0:01:21.6]} 33. Nd4 {[%clk 0:00:35.6]}
33... Rc4 {[%clk 0:01:05.7]} 34. Nxb3 {[%clk 0:00:28.7]} 34... Qxb3 {[%clk
0:01:07.6]} 35. Bd4 {[%clk 0:00:26.7]} 35... Rdc8 {[%clk 0:01:04.2]} 36. h3
{[%clk 0:00:26.6]} 36... Rc2 {[%clk 0:01:03.5]} 37. Qe3 {[%clk 0:00:24.8]} 37...
Qxe3 {[%clk 0:00:57.4]} 38. Rxe3 {[%clk 0:00:25.2]} 38... Rf2 {[%clk 0:00:59.1]}
39. Rf3 {[%clk 0:00:17]} 39... Rxf3 {[%clk 0:00:59.5]} 40. gxf3 {[%clk
0:00:18.9]} 40... Bf8 {[%clk 0:00:56.9]} 41. Ra1 {[%clk 0:00:12.1]} 41... Rc2
{[%clk 0:00:57.2]} 42. Ra8 {[%clk 0:00:12.3]} 42... Kg7 {[%clk 0:00:58.6]} 43.
Ra7 {[%clk 0:00:07.8]} 43... Rc4 {[%clk 0:00:56.8]} 44. Be3 {[%clk 0:00:07.4]}
44... Bc5 {[%clk 0:00:56.4]} 45. Bxc5 {[%clk 0:00:08.2]} 45... Rxc5 {[%clk
0:00:58.3]} 46. b4 {[%clk 0:00:07]} 46... Rc4 {[%clk 0:00:58.6]} 47. b5 {[%clk
0:00:07.1]} 47... Rxf4 {[%clk 0:00:59.2]} 48. b6 {[%clk 0:00:07.1]} 48... Rb4
{[%clk 0:01:00.2]} 49. b7 {[%clk 0:00:08.4]} 49... g5 {[%clk 0:01:00.2]} 50. Kg2
{[%clk 0:00:08.9]} 50... Kg6 {[%clk 0:01:01]} 51. Kg3 {[%clk 0:00:08.2]} 51...
h5 {[%clk 0:01:01.2]} 52. Kf2 {[%clk 0:00:06.7]} 52... h4 {[%clk 0:00:55.2]} 53.
Ke3 {[%clk 0:00:07.4]} 53... Kf5 {[%clk 0:00:54.3]} 54. b8=Q {[%clk 0:00:05.9]}
54... Rxb8 {[%clk 0:00:55.2]} 55. Rxf7+ {[%clk 0:00:07.8]} 55... Kxe5 {[%clk
0:00:56.4]} 56. Rg7 {[%clk 0:00:07.2]} 56... Rb3+ {[%clk 0:00:57.1]} 57. Ke2
{[%clk 0:00:07.5]} 57... Kf4 {[%clk 0:00:57.5]} 58. Rf7+ {[%clk 0:00:06.9]}
58... Kg3 {[%clk 0:00:58.6]} 59. Rg7 {[%clk 0:00:07.2]} 59... Kf4 {[%clk
0:00:56.3]} 60. Rf7+ {[%clk 0:00:08.2]} 60... Ke5 {[%clk 0:00:57.4]} 61. Rg7
{[%clk 0:00:09.2]} 61... Kf6 {[%clk 0:00:58.7]} 62. Rg8 {[%clk 0:00:08.8]} 62...
Rb2+ {[%clk 0:00:56.4]} 63. Ke3 {[%clk 0:00:08]} 63... Rh2 {[%clk 0:00:57.2]}
64. Rf8+ {[%clk 0:00:08.7]} 64... Kg7 {[%clk 0:00:54.7]} 65. Re8 {[%clk
0:00:09.7]} 65... Kf7 {[%clk 0:00:55.9]} 66. Rh8 {[%clk 0:00:07.3]} 66... Rxh3
{[%clk 0:00:56.8]} 67. Rh7+ {[%clk 0:00:08.9]} 67... Kf6 {[%clk 0:00:57.2]} 68.
Re7 {[%clk 0:00:10.5]} 68... Kxe7 {[%clk 0:00:57.9]} 0-1

[Event "*** Titled Tuesday 3|2 Blitz"]
[Site "Chess.com"]
[Date "2015.09.01"]
[Round "6"]
[White "PowerThinking2650"]
[Black "motivated_bishop"]
[Result "1-0"]
[WhiteElo "2098"]
[BlackElo "2057"]
[TimeControl "180+2"]
[EndTime "12:15:29 PDT"]
[Termination "PowerThinking2650 won by resignation"]

1. e4 {[%clk 0:03:01.9]} 1... e5 {[%clk 0:03:00.8]} 2. Nf3 {[%clk 0:03:02.7]}
2... Nc6 {[%clk 0:03:02.2]} 3. d4 {[%clk 0:03:03.8]} 3... exd4 {[%clk
0:03:03.1]} 4. Nxd4 {[%clk 0:03:05.4]} 4... Nf6 {[%clk 0:03:04.8]} 5. Nxc6
{[%clk 0:03:05.3]} 5... bxc6 {[%clk 0:03:06.3]} 6. e5 {[%clk 0:03:06.9]} 6...
Qe7 {[%clk 0:03:07.4]} 7. Qe2 {[%clk 0:03:08.1]} 7... Nd5 {[%clk 0:03:08.8]} 8.
c4 {[%clk 0:03:09.5]} 8... Ba6 {[%clk 0:03:09.8]} 9. b3 {[%clk 0:03:07.6]} 9...
g6 {[%clk 0:03:10.8]} 10. g3 {[%clk 0:03:08.2]} 10... Bg7 {[%clk 0:03:12]} 11.
Bb2 {[%clk 0:03:09.7]} 11... O-O {[%clk 0:03:13.3]} 12. Bg2 {[%clk 0:03:10.7]}
12... Rae8 {[%clk 0:03:14.2]} 13. O-O {[%clk 0:03:11]} 13... Bxe5 {[%clk
0:03:15.5]} 14. Qxe5 {[%clk 0:03:09.8]} 14... Qxe5 {[%clk 0:03:16.9]} 15. Bxe5
{[%clk 0:03:10.5]} 15... Rxe5 {[%clk 0:03:18.2]} 16. cxd5 {[%clk 0:03:11.6]}
16... Bxf1 {[%clk 0:03:19.3]} 17. Kxf1 {[%clk 0:03:12.3]} 17... cxd5 {[%clk
0:03:20.5]} 18. Nc3 {[%clk 0:03:11.6]} 18... c6 {[%clk 0:03:21.8]} 19. Rd1
{[%clk 0:03:07.9]} 19... Rb8 {[%clk 0:03:19.7]} 20. Rd4 {[%clk 0:03:04.3]} 20...
a5 {[%clk 0:03:14.5]} 21. Ra4 {[%clk 0:02:58.5]} 21... Rb4 {[%clk 0:03:15.5]}
22. Rxa5 {[%clk 0:02:45.8]} 22... Rd4 {[%clk 0:03:16.5]} 23. Rc5 {[%clk
0:02:11.3]} 23... Rd2 {[%clk 0:03:03.6]} 24. Bf3 {[%clk 0:01:50.6]} 24... Rf5
{[%clk 0:02:35]} 25. Be2 {[%clk 0:01:37.6]} 25... d4 {[%clk 0:02:35.4]} 26. Ne4
{[%clk 0:00:59.8]} 26... Rxa2 {[%clk 0:01:26.8]} 27. Rxf5 {[%clk 0:00:57.5]}
27... gxf5 {[%clk 0:01:27.7]} 28. Nf6+ {[%clk 0:00:57.3]} 28... Kf8 {[%clk
0:01:05.2]} 29. Nxd7+ {[%clk 0:00:57.8]} 29... Ke7 {[%clk 0:01:06.5]} 30. Nc5
{[%clk 0:00:51.7]} 30... Kd6 {[%clk 0:01:02]} 31. Nd3 {[%clk 0:00:44.2]} 31...
c5 {[%clk 0:01:03]} 32. Nf4 {[%clk 0:00:36.7]} 32... f6 {[%clk 0:00:36.1]} 33.
Bc4 {[%clk 0:00:36.1]} 33... Rd2 {[%clk 0:00:28.4]} 34. Nd3 {[%clk 0:00:35.7]}
34... Rc2 {[%clk 0:00:27.4]} 35. Kg2 {[%clk 0:00:35.5]} 35... Rd2 {[%clk
0:00:19.5]} 36. Kf3 {[%clk 0:00:36.4]} 36... Kc6 {[%clk 0:00:09.8]} 37. Kf4
{[%clk 0:00:36.6]} 37... Kb6 {[%clk 0:00:10.7]} 38. Kxf5 {[%clk 0:00:33.8]}
38... Ka5 {[%clk 0:00:11.9]} 39. h4 {[%clk 0:00:20.5]} 39... Rxd3 {[%clk
0:00:07.5]} 40. Bxd3 {[%clk 0:00:20.9]} 40... Kb4 {[%clk 0:00:09]} 41. Bc4
{[%clk 0:00:21.3]} 41... Kc3 {[%clk 0:00:09.7]} 42. Ke4 {[%clk 0:00:20.1]} 42...
f5+ {[%clk 0:00:08.8]} 43. Kf3 {[%clk 0:00:08.8]} 43... d3 {[%clk 0:00:08.3]}
44. Ke3 {[%clk 0:00:09.7]} 44... d2 {[%clk 0:00:09.5]} 45. Be2 {[%clk 0:00:09]}
45... Kc2 {[%clk 0:00:09.5]} 46. f3 {[%clk 0:00:04.9]} 46... d1=Q {[%clk
0:00:09.3]} 47. Bxd1+ {[%clk 0:00:06]} 47... Kxd1 {[%clk 0:00:10.8]} 48. Kd3
{[%clk 0:00:06.5]} 48... Ke1 {[%clk 0:00:12.2]} 49. g4 {[%clk 0:00:07.7]} 49...
f4 {[%clk 0:00:10.5]} 50. g5 {[%clk 0:00:06.7]} 50... Kf2 {[%clk 0:00:11.3]} 51.
Ke4 {[%clk 0:00:06.9]} 51... Kg3 {[%clk 0:00:12.2]} 52. h5 {[%clk 0:00:08.2]}
52... Kh4 {[%clk 0:00:13.2]} 53. g6 {[%clk 0:00:09.4]} 53... c4 {[%clk
0:00:06.9]} 54. bxc4 {[%clk 0:00:09.6]} 54... Kg5 {[%clk 0:00:06.5]} 55. gxh7
{[%clk 0:00:10.1]} 55... Kh4 {[%clk 0:00:04.1]} 56. h8=Q {[%clk 0:00:10.6]} 1-0